[Event "CCT Julius Baer-D3 2024"]
[Site "Online"]
[Date "2024.09.27"]
[Round "1.3"]
[White "Deac, Bogdan-Daniel"]
[Black "Yoo, Christopher Woojin"]
[Result "1/2-1/2"]
[ECO "E05"]
[WhiteElo "2680"]
[BlackElo "2603"]
[Annotator "TA"]
[PlyCount "272"]
[EventDate "2024.09.25"]
[EventType "swiss"]
[EventCountry "NET"]
[SourceTitle "playchess.com"]
[Source "ChessBase"]
[SourceQuality "1"]
[TimeControl "600+2"]

{[%evp 13,272,23,22,27,34,28,32,34,37,36,44,15,26,26,32,23,30,17,35,34,68,81,80,63,53,74,78,92,111,103,107,107,104,106,108,107,114,100,107,101,101,98,112,94,116,91,91,92,92,92,94,85,92,89,101,60,73,60,57,57,73,73,73,73,73,73,106,73,73,74,86,66,69,65,68,67,68,46,46,48,99,61,103,112,220,185,319,308,298,305,260,84,71,54,54,54,54,54,54,54,54,54,54,54,54,54,54,54,77,54,77,54,77,77,77,77,77,54,77,54,54,54,54,54,54,54,54,54,54,54,54,54,54,54,54,54,54,54,54,54,54,54,54,54,54,54,54,54,54,54,54,54,54,54,54,54,54,54,54,54,54,54,54,54,54,54,54,54,54,54,54,54,54,54,54,54,54,54,54,54,54,54,54,54,54,54,54,54,54,54,54,54,54,54,54,54,54,54,54,54,54,54,54,54,54,54,54,54,54,54,54,54,54,54,54,54,54,54,54,54,54,54,54,54,54,54,54,54,54,54,54,54,54,54,54,54,54,54,54,54,54,54,54,54,54,54,54,54,54,54,54,54,54,54,54,54,54,54,54,0,54]} 1. Nf3 {[%emt 0:00:02]} Nf6 {[%emt 0:00:42]} 2. c4 {[%emt 0:00:04]} e6 {[%emt 0:00:08]} 3. g3 {[%emt 0:00:01]} d5 {[%emt 0:00:03]} 4. Bg2 {[%emt 0:00:01]} Be7 {[%emt 0:00:01]} 5. d4 {[%emt 0:00:04]} O-O {[%emt 0:00:02]} 6. O-O {[%emt 0:00:09]} dxc4 {[%emt 0:00:02]} 7. Qc2 {[%emt 0:00:01]} b5 {[%emt 0:00:02]} 8. a4 {[%emt 0:00:01] E05: Open Catalaans: 5 Pf3 Le7.} Bb7 {[%emt 0:00:01]} 9. axb5 {[%emt 0:00:01] OK} a6 {[%emt 0:00:02] OK} 10. bxa6 {[%emt 0:00:40] OK. Wit staat iets beter.} (10. Qxc4 $2 {slaat de verkeerde figuur.} axb5 11. Qxb5 Rxa1 $19) 10... Nxa6 {[%emt 0:00:02][%cal Bb8a6,Ba6b4,Bb4c2][%mdl 32] EV=32.57} 11. Qxc4 {[%emt 0:00:01]} Bd5 {[%emt 0:00:02] OK} 12. Qc3 {[%emt 0:00:01] Onnauwkeurig} c5 {[%emt 0:00:05] OK} 13. Be3 {[%emt 0:00:01] OK} Ne4 {[%emt 0:00:15]} 14. Qe1 {[%emt 0:00:11] OK} Nb4 {[%emt 0:00:05] OK} 15. Rxa8 {[%emt 0:00:21] OK} Qxa8 {[%emt 0:00:00]} 16. Nc3 {[%emt 0:00:01] OK} Nc2 {[%emt 0:00:57] [#] Onnauwkeurig} 17. Nxd5 $1 {[%emt 0:00:03] Sterk} Qxd5 {[%emt 0:00:11]} 18. Qc1 {[%emt 0:00:11] OK} Nxe3 {[%emt 0:00:31] OK} 19. Qxe3 {[%emt 0:00:02]} cxd4 {[%emt 0:00:02] OK} 20. Nxd4 {[%emt 0:00:08]} Bc5 {[%emt 0:00:19][%cal Of7f5]} 21. Bxe4 {[%emt 0:00:21]} Qxd4 {[%emt 0:00:06] OK} 22. Qxd4 {[%emt 0:00:02]} Bxd4 $16 {[%emt 0:00:00][%mdl 4096] Eindspel. KRB-KRB} 23. b4 {[%emt 0:00:13] OK} Rb8 {[%emt 0:00:04] OK} 24. Rb1 {[%emt 0:00:03] OK} Kf8 {[%emt 0:00:02] OK} 25. e3 $146 {[%emt 0:00:06]} ({Verwerp} 25. Bxh7 g6 $15) ({Predecessor:} 25. b5 Ke7 26. Kg2 h5 27. Bd3 g5 28. Rc1 Bb6 29. h3 Rd8 30. Rc3 h4 31. gxh4 gxh4 {1-0 Lazavik,D (2523)-So,W (2771) Chess.com Rapid CGC KO 2022 (1.2)}) 25... Bb6 {[%emt 0:00:04] OK} 26. Kf1 {[%emt 0:00:40]} ({Slechter is} 26. Bxh7 g6 $15) 26... Rc8 {[%emt 0:00:02] OK} 27. Ke2 {[%emt 0:00:37]} ({Natuurlijk niet} 27. Bxh7 $6 g6 $11) 27... Rc3 {[%emt 0:00:03]} 28. Bd3 {[%emt 0:00:03]} ({Speel niet} 28. Bxh7 $6 g6 $11) 28... g6 {[%emt 0:00:18] OK} 29. Ra1 {[%emt 0:01:12]} Rb3 {[%emt 0:00:04] OK} 30. b5 {[%emt 0:00:01] OK} Rb2+ {[%emt 0:00:04] OK} 31. Kf1 {[%emt 0:00:01] OK} Ke7 {[%emt 0:00:09]} 32. Ra6 {[%emt 0:00:09] OK} Bc5 {[%emt 0:00:01] OK} 33. Rc6 {[%emt 0:00:05] OK} Bb4 {[%emt 0:00:01] OK} 34. g4 {[%emt 0:01:32] Onnauwkeurig} Kf6 {[%emt 0:00:10]} 35. Ra6 {[%emt 0:00:32]} h6 {[%emt 0:00:21]} 36. h4 {[%emt 0:00:09][%cal Bh2h4,Bh4h5][%mdl 32] EV=11.36. Goes to h5 (dbg))} Bc5 {[%emt 0:00:12]} 37. Rc6 {[%emt 0:00:15] OK} Bb4 {[%emt 0:00:02] OK} 38. Rc7 {[%emt 0:00:03]} g5 {[%emt 0:00:04] OK} 39. h5 {[%emt 0:01:09] OK} Ba5 {[%emt 0:00:02] Onnauwkeurig} 40. Ra7 {[%emt 0:00:03] Onnauwkeurig} Bb6 {[%emt 0:00:01] OK} 41. Rb7 {[%emt 0:00:15]} Bc5 {[%emt 0:00:01] OK} 42. Bh7 {[%emt 0:00:39]} Rb4 {[%emt 0:00:03] OK} 43. Bg8 {[%emt 0:00:21][%cal Rb7f7] OK} Be7 {[%emt 0:00:02] Beste (Gemakkelijk)} 44. b6 {[%emt 0:00:04][%cal Bb5b6,Bb6b7][%mdl 32] EV=10.01. Goes to b7 (dbg)). OK} Rxg4 {[%emt 0:00:12]} 45. Rc7 {[%emt 0:00:35][%cal Of2f4] Wit is actiever.} Rb4 {[%emt 0:00:03] OK} 46. b7 {[%emt 0:00:02] Beste (Gemakkelijk)} {Zwart kan het beste.} Rb2 {[%emt 0:00:37] Fout (0.5)} (46... e5 $1 $14) 47. Kg2 {[%emt 0:00:14] Onnauwkeurig} g4 {[%emt 0:01:10][%cal Bg5g4,Bg4g3,Bg3f2][%mdl 32] EV=12.39. Goes to f2 (dbg)). Onnauwkeurig} 48. Rd7 {[%emt 0:00:02] Beste} Bc5 {[%emt 0:00:11] zou kunnen werken. Fout (1.1)} (48... e5 $16) 49. Kg3 {[%emt 0:00:05][%cal Rd7f7]} ({Doe niet} 49. Bxf7 Bd6 50. Rxd6 Kxf7 51. Rd7+ Kf6) 49... Kg5 {[%emt 0:00:48] is waarschijnlijk voordeliger. Fout (1.3)} (49... Be7 50. Kxg4 Rb4+ 51. f4 e5) 50. Bxf7 $18 {[%emt 0:00:01] Beste (Gemakkelijk)} (50. Rxf7 Bd6+ 51. f4+ gxf3+ 52. Kxf3 Be5 $18) 50... Ba7 {[%emt 0:00:07]} 51. Bxe6 {[%emt 0:00:03] Beste (Gemakkelijk)} Bb8+ {[%emt 0:00:00] [#] Beste} 52. Kg2 $2 {[%emt 0:00:01] is de winnende zet. Gemiste overwinning (1.8)} (52. f4+ $1 $18 gxf3+ 53. Kxf3) 52... g3 $16 {[%emt 0:00:05][%cal Rb2f2] Beste} 53. Rf7 {[%emt 0:00:01]} Rxf2+ {[%emt 0:00:21] OK} 54. Rxf2 {[%emt 0:00:01]} gxf2 $14 {[%emt 0:00:00] KB-KB} 55. Bf7 {[%emt 0:00:01]} (55. Kxf2 Kxh5 56. Kf3 Kg5 $16) 55... Bg3 {[%emt 0:00:15]} 56. Bc4 {[%emt 0:00:04] OK} ({Maar niet} 56. Kxg3 f1=Q 57. b8=Q Qxf7 $11) 56... Bb8 {[%emt 0:00:23]} 57. Be2 {[%emt 0:00:01]} ({Niet} 57. Kxf2 Kxh5 58. Kf3 Kg5 $18) 57... Kf5 {[%emt 0:00:05]} 58. Kxf2 {[%emt 0:00:02]} Ke4 {[%emt 0:00:15]} 59. Bb5 {[%emt 0:00:03]} Ba7 {[%emt 0:00:08]} 60. Bc6+ {[%emt 0:00:02]} Ke5 {[%emt 0:00:03]} 61. Kf3 {[%emt 0:00:00]} Bb8 {[%emt 0:00:01]} 62. Bb5 {[%emt 0:00:04]} Ba7 {[%emt 0:00:02]} 63. Bd3 {[%emt 0:00:01]} Bb8 {[%emt 0:00:03] OK} 64. Bg6 {[%emt 0:00:01]} Ba7 {[%emt 0:00:02]} 65. Ke2 {[%emt 0:00:01]} Bb8 {[%emt 0:00:01]} 66. Kd3 {[%emt 0:00:01]} Ba7 {[%emt 0:00:08]} 67. Be4 {[%emt 0:00:05]} Bb8 {[%emt 0:00:05] OK} 68. Bf3 {[%emt 0:00:02]} Ba7 {[%emt 0:00:02]} 69. Kc4 {[%emt 0:00:02]} Kd6 {[%emt 0:00:06]} 70. Bd5 {[%emt 0:00:03]} Ke5 {[%emt 0:00:20] OK} 71. Bg2 {[%emt 0:00:03]} Kd6 {[%emt 0:00:02]} 72. Bf3 {[%emt 0:00:01]} (72. Kb5 $5 Kc7 $8 73. b8=N Kxb8 74. Kc6 $11) 72... Ke5 {[%emt 0:00:12] OK} 73. Kb5 {[%emt 0:00:03]} Kd6 {[%emt 0:00:03]} 74. Ka6 {[%emt 0:00:01] OK} Bb8 {[%emt 0:00:01] Beste (Gemakkelijk)} 75. Kb6 {[%emt 0:00:01] OK} Kd7 {[%emt 0:00:07]} 76. Bg4+ {[%emt 0:00:02]} Kd6 {[%emt 0:00:07]} 77. Bh3 {[%emt 0:00:03]} Ke7 {[%emt 0:00:02] OK} 78. Kc6 {[%emt 0:00:02] OK} Bh2 {[%emt 0:00:11] OK} 79. Bg4 {[%emt 0:00:03]} Bb8 {[%emt 0:00:03] OK} 80. Be2 {[%emt 0:00:01] OK} Bh2 {[%emt 0:00:04]} 81. Kb6 {[%emt 0:00:02] OK} Bb8 {[%emt 0:00:01] Beste (Gemakkelijk)} 82. Bd3 {[%emt 0:00:01]} Kd6 {[%emt 0:00:06]} 83. Bg6 {[%emt 0:00:03] OK} Ke7 {[%emt 0:00:02]} 84. Kc5 {[%emt 0:00:03] OK} Ke6 {[%emt 0:00:06] OK} 85. Kc6 {[%emt 0:00:03] OK} Ke7 {[%emt 0:00:03]} 86. Kd5 {[%emt 0:00:01]} Kf6 {[%emt 0:00:05] OK} 87. Bd3 {[%emt 0:00:02] OK} Bh2 {[%emt 0:00:05] OK} 88. Bc2 {[%emt 0:00:02]} Bb8 {[%emt 0:00:03]} 89. Bd1 {[%emt 0:00:00]} Bh2 {[%emt 0:00:04] OK} 90. Bg4 {[%emt 0:00:03]} Bb8 {[%emt 0:00:02]} 91. Kc6 {[%emt 0:00:01] Hoopt vervolgens op Kd7. OK} Ke7 {[%emt 0:00:01] OK} 92. Bh3 {[%emt 0:00:01] OK} Bh2 {[%emt 0:00:04]} 93. e4 {[%emt 0:00:02]} Bb8 {[%emt 0:00:03] OK} 94. Bf5 {[%emt 0:00:04]} Bh2 {[%emt 0:00:05] OK} 95. Kc5 {[%emt 0:00:02]} Bb8 {[%emt 0:00:04] OK} 96. Kb6 {[%emt 0:00:01]} Kf6 {[%emt 0:00:07] OK} 97. Kb5 {[%emt 0:00:02]} Ke7 {[%emt 0:00:04] OK} 98. Kc6 {[%emt 0:00:01]} Bh2 {[%emt 0:00:03] OK} 99. Bh3 {[%emt 0:00:01]} Bb8 {[%emt 0:00:02]} 100. Bf1 {[%emt 0:00:01]} Bh2 {[%emt 0:00:03] OK} 101. Bc4 {[%emt 0:00:02]} Bb8 {[%emt 0:00:03]} 102. Kd5 {[%emt 0:00:02] En nu zou e5 winnen. OK} Kf6 $1 {[%emt 0:00:03] Sterk} 103. Be2 {[%emt 0:00:01]} Bh2 {[%emt 0:00:03] OK} 104. Bf3 {[%emt 0:00:01]} Bb8 {[%emt 0:00:01]} 105. Kc5 {[%emt 0:00:02]} Ke7 {[%emt 0:00:04] OK} 106. Kc6 {[%emt 0:00:01]} Bh2 {[%emt 0:00:01]} 107. Bg4 {[%emt 0:00:02]} Bb8 {[%emt 0:00:01]} 108. Bd1 {[%emt 0:00:03]} Bh2 {[%emt 0:00:04]} 109. Bb3 {[%emt 0:00:01]} Bb8 {[%emt 0:00:02] OK} 110. Kb6 {[%emt 0:00:01]} Kf6 {[%emt 0:00:04]} 111. Ba2 {[%emt 0:00:03]} Ke7 {[%emt 0:00:04]} 112. Kc5 {[%emt 0:00:04]} Kf6 {[%emt 0:00:04] OK} 113. Bg8 {[%emt 0:00:01]} Ke7 {[%emt 0:00:02]} 114. Bh7 {[%emt 0:00:02]} Kf6 {[%emt 0:00:02]} 115. Bg6 {[%emt 0:00:02]} Ke7 {[%emt 0:00:01]} 116. Kd5 {[%emt 0:00:02] e5 zou dodelijk zijn.} Kf6 $1 {[%emt 0:00:01] Sterk} 117. Bf5 {[%emt 0:00:01]} Bh2 {[%emt 0:00:03] OK} 118. Bh3 {[%emt 0:00:01]} Bb8 {[%emt 0:00:02]} 119. Bf1 {[%emt 0:00:01]} Bh2 {[%emt 0:00:02] OK} 120. Kd4 {[%emt 0:00:01]} Bb8 {[%emt 0:00:03]} 121. Kc5 {[%emt 0:00:05]} Ke7 {[%emt 0:00:01]} 122. Kc6 {[%emt 0:00:04]} Bh2 {[%emt 0:00:03]} 123. Kb6 {[%emt 0:00:01] Ka7 is de sterke dreiging. OK} Bb8 {[%emt 0:00:01] Beste (Gemakkelijk)} 124. Ba6 {[%emt 0:00:01]} Kf6 {[%emt 0:00:02]} 125. Bc4 {[%emt 0:00:02]} Ke7 {[%emt 0:00:01] OK} 126. Bd5 {[%emt 0:00:01]} Kf6 {[%emt 0:00:02]} 127. Kc6 {[%emt 0:00:03]} Ke7 {[%emt 0:00:00] Beste (Gemakkelijk)} 128. Bg8 {[%emt 0:00:00]} Bh2 {[%emt 0:00:03]} 129. Bh7 {[%emt 0:00:02]} Bb8 {[%emt 0:00:02]} 130. Kd5 {[%emt 0:00:04] Dreigt te winnen met e5. OK} Kf6 $1 {[%emt 0:00:00] Sterk} 131. Bg6 {[%emt 0:00:01]} Bh2 {[%emt 0:00:03] OK} 132. Kd4 {[%emt 0:00:06]} Bb8 {[%emt 0:00:03]} 133. Kc5 {[%emt 0:00:00]} Ke7 {[%emt 0:00:01]} 134. Bf5 {[%emt 0:00:03]} Bh2 {[%emt 0:00:02]} 135. Kd5 {[%emt 0:00:01] Wit wil matzetten met e5.} Kf6 $1 {[%emt 0:00:01] Sterk} 136. Kc6 {[%emt 0:00:01] Sterke dreiging met Kd7.} Ke7 {[%emt 0:00:00] Blunder waarde: Wit=0.12 (erg precies) /Zwart=0.11 (erg precies) . Beste (Gemakkelijk).  Gemiste overwinning: 	Wit=1      	---        Fout:        	---       	Zwart=3      Onnauwkeurig:    	Wit=4      	Zwart=3      OK:         	Wit=32     	Zwart=50     Beste:        	Wit=4      	Zwart=8      Sterk:        	Wit=1      	Zwart=4} 1/2-1/2

[Event "CCT Julius Baer-D3 2024"]
[Site "Online"]
[Date "2024.09.27"]
[Round "1.3"]
[White "Martirosyan, Haik M."]
[Black "Caruana, Fabiano"]
[Result "0-1"]
[ECO "D44"]
[WhiteElo "2667"]
[BlackElo "2798"]
[Annotator "TA"]
[PlyCount "88"]
[EventDate "2024.09.25"]
[EventType "swiss"]
[EventCountry "NET"]
[SourceTitle "playchess.com"]
[Source "ChessBase"]
[SourceQuality "1"]
[TimeControl "600+2"]

{[%evp 29,88,-31,23,34,154,144,134,136,134,141,131,106,96,138,129,102,145,53,43,5,0,-61,-61,-57,-85,-48,-57,-106,-91,-107,-35,-267,-254,-284,-275,-427,-400,-454,-444,-424,-388,-619,-610,-525,-418,-924,-891,-938,-925,-908,-860,-1470,-1383,-1714,-1533,-1593,-5539,-29960,-29963,-29989,-29990]} 1. d4 {[%emt 0:00:02]} Nf6 {[%emt 0:00:03]} 2. c4 {[%emt 0:00:02]} e6 {[%emt 0:00:01]} 3. Nf3 {[%emt 0:00:01]} d5 {[%emt 0:00:01]} 4. Nc3 {[%emt 0:00:00]} c6 {[%emt 0:00:02]} 5. Bg5 {[%emt 0:00:01]} dxc4 {[%emt 0:00:01]} 6. e4 {[%emt 0:00:02]} b5 {[%emt 0:00:02]} 7. e5 {[%emt 0:00:02]} h6 {[%emt 0:00:02]} 8. Bh4 {[%emt 0:00:01]} g5 {[%emt 0:00:01]} 9. Nxg5 {[%emt 0:00:01]} hxg5 {[%emt 0:00:01]} 10. Bxg5 {[%emt 0:00:00]} Nbd7 {[%emt 0:00:01]} 11. exf6 {[%emt 0:00:06]} Bb7 {[%emt 0:00:02]} 12. Be2 {[%emt 0:00:03] Recently 12.h4 got a lot of attention.} Qa5 {[%emt 0:00:03] D44: Semi-Slav: Botvinnik System.} 13. O-O {[%emt 0:00:41]} O-O-O {[%emt 0:00:05]} 14. h4 {[%emt 0:00:19]} Ne5 {[%emt 0:00:06] was the old line (14...Bh6).} 15. Qd2 $146 {[%emt 0:01:50]} ({Predecessor:} 15. Qc1 Nd3 16. Bxd3 cxd3 17. Qe3 Qb4 18. Rfd1 Rxd4 19. Rxd3 Rdxh4 20. Bxh4 Qxh4 21. Qh3 Qxf6 22. Qg3 {½-½ Iotov,V (2565)-Mendl,M (2528) GER AM/03-A email 2017}) 15... b4 {[%emt 0:01:26]} (15... Bc5 $15) 16. Ne4 $11 {[%emt 0:00:48]} Qd5 {[%emt 0:02:31]} ({Better is} 16... Nd3 $14) 17. dxe5 $16 {[%emt 0:00:53]} Qxe4 {[%emt 0:00:02]} 18. Qe3 {[%emt 0:00:01]} Qxe3 {[%emt 0:00:02]} 19. Bxe3 {[%emt 0:00:01]} Rxh4 {[%emt 0:00:14]} 20. f4 {[%emt 0:00:02]} (20. Bxa7 $2 Rd2 21. Rfe1 (21. g3 $2 Rh8 $19) 21... c5 $19 (21... Rxb2 22. Be3 $19)) 20... c3 {[%emt 0:00:24]} 21. bxc3 {[%emt 0:00:47]} (21. Bxa7 Rd2 (21... cxb2 $2 22. Rad1 $19) 22. Rfe1 cxb2 $19 (22... Rxf4 $2 23. bxc3 bxc3 24. Bf2 $19) (22... Rxb2 $2 23. Bb6 $19)) 21... bxc3 {[%emt 0:00:00] [#]} 22. a3 $1 {[%emt 0:00:14]} (22. Bxa7 Rd2 23. Rf2 c5 $19) 22... Rd2 {[%emt 0:00:53]} 23. Rf2 {[%emt 0:00:24]} ({White should play} 23. Bxd2 $16 Bc5+ 24. Rf2 cxd2 25. g3) 23... Rb2 $14 {[%emt 0:00:10]} 24. Bf3 {[%emt 0:00:53]} Rxf4 {[%emt 0:01:26]} 25. Rxb2 {[%emt 0:01:00]} (25. Bxf4 $11 Bc5 26. Bg3) 25... cxb2 $15 {[%emt 0:00:00]} 26. Rb1 {[%emt 0:00:01]} Rf5 {[%emt 0:00:07]} 27. Rxb2 {[%emt 0:01:31]} Rxe5 {[%emt 0:00:02]} 28. Bd4 {[%emt 0:00:13]} (28. Rb3 $15 {deserves consideration.}) 28... Rf5 {[%emt 0:00:33]} 29. Rb3 {[%emt 0:00:34]} a5 {[%emt 0:00:37]} ({Black should try} 29... Bd6 $17 30. g4 Rf4 31. Bxa7 Rxf6) 30. Re3 $2 {[%emt 0:00:21]} (30. g4 $1 $15 Rb5 31. Rc3) 30... c5 $19 {[%emt 0:00:35]} 31. Bxb7+ {[%emt 0:00:00]} Kxb7 {[%emt 0:00:00]} 32. Bc3 {[%emt 0:00:00]} (32. g4 $142 Rf4 (32... cxd4 $2 33. Rb3+ Kc6 34. gxf5 $19) 33. Bc3) 32... c4 $19 {[%emt 0:00:01]} 33. Re4 {[%emt 0:00:09]} Bxa3 {[%emt 0:00:15]} 34. g4 {[%emt 0:00:00]} Rc5 {[%emt 0:00:14]} 35. Kg2 {[%emt 0:00:06]} (35. Kf2 $142) 35... Bb4 $19 {[%emt 0:00:03]} 36. Bd4 {[%emt 0:00:00]} Rc6 {[%emt 0:00:24]} 37. Be3 {[%emt 0:00:01]} (37. g5 $142) 37... a4 $19 {[%emt 0:00:06]} 38. g5 {[%emt 0:00:03]} a3 {[%emt 0:00:02]} 39. g6 {[%emt 0:00:01]} fxg6 {[%emt 0:00:02]} 40. Rh4 {[%emt 0:00:05]} a2 {[%emt 0:00:02]} 41. Rh1 {[%emt 0:00:01]} Bc3 {[%emt 0:00:22]} 42. f7 {[%emt 0:00:01]} Rc8 {[%emt 0:00:01]} (42... a1=B 43. f8=Q (43. f8=B $2 {loses.} e5 $19) 43... g5 44. Rd1 (44. Bxg5 Be5 $18) 44... Ka6 45. Qa8+ (45. Bxg5 Kb5 $18) 45... Kb5 46. Qb7+ (46. Rxa1 Bxa1 47. Qb7+ Ka5 48. Qxc6 Kb4 49. Qb6+ Ka4 50. Qa6+ Kb3 51. Qxa1 c3) 46... Ka4 47. Qxc6+ Kb3 48. Qb7+ (48. Qxe6 Bab2 49. Rd8 Ba5 50. Rc8 Bbc3 51. Qxc4+ Kb2 52. Rb8+ Bab4) 48... Bb4 49. Rxa1) (42... a1=Q 43. Rxa1 Bg7 44. Ra7+ Kb8 45. Re7 $11) 43. Bc5 {[%emt 0:00:05]} a1=Q {[%emt 0:00:02]} (43... a1=B 44. f8=Q Rxf8 45. Bxf8 $11) 44. Rh7 {[%emt 0:00:02]} Kc6 {[%emt 0:00:02]} 0-1

[Event "CCT Julius Baer-D3 2024"]
[Site "Online"]
[Date "2024.09.27"]
[Round "1.3"]
[White "h4parah5"]
[Black "Arm-Akiba"]
[Result "1-0"]
[ECO "C55"]
[WhiteElo "2660"]
[BlackElo "2544"]
[Annotator "NA"]
[PlyCount "119"]
[EventDate "2024.09.25"]
[EventType "swiss"]
[EventCountry "NET"]
[SourceTitle "playchess.com"]
[Source "ChessBase"]
[SourceQuality "1"]
[TimeControl "600+2"]

1. e4 {[%emt 0:00:03]} e5 {[%emt 0:00:03]} 2. Nf3 {[%emt 0:00:01]} Nc6 {[%emt 0:00:01]} 3. Bc4 {[%emt 0:00:01]} Nf6 {[%emt 0:00:01]} 4. d3 {[%emt 0:00:00]} Be7 {[%emt 0:00:00]} 5. O-O {[%emt 0:00:02]} O-O {[%emt 0:00:03]} 6. Nc3 {[%emt 0:00:04]} d6 {[%emt 0:00:01]} 7. a4 {[%emt 0:00:03]} Bg4 {[%emt 0:00:04]} 8. h3 {[%emt 0:00:02]} Bh5 {[%emt 0:00:02]} 9. Nd5 {[%emt 0:00:02]} Nxd5 {[%emt 0:00:03]} 10. Bxd5 {[%emt 0:00:02]} Qc8 {[%emt 0:00:01]} 11. Be3 {[%emt 0:00:08]} Kh8 {[%emt 0:00:12]} 12. g4 {[%emt 0:00:02]} Bg6 {[%emt 0:00:01]} 13. a5 {[%emt 0:00:08]} a6 {[%emt 0:00:13]} 14. c3 {[%emt 0:00:01]} Nd8 {[%emt 0:00:05]} 15. Kh2 {[%emt 0:00:19]} c6 {[%emt 0:00:21]} 16. Ba2 {[%emt 0:00:02]} Ne6 {[%emt 0:00:26]} 17. Qd2 {[%emt 0:00:08]} Qc7 {[%emt 0:00:49]} 18. Bxe6 {[%emt 0:00:50]} fxe6 {[%emt 0:00:03]} 19. Qe2 {[%emt 0:00:01]} Qd8 {[%emt 0:01:01]} 20. c4 {[%emt 0:00:08]} c5 {[%emt 0:01:00]} 21. Kg1 {[%emt 0:00:29]} b5 {[%emt 0:00:21]} 22. axb6 {[%emt 0:00:03]} Qxb6 {[%emt 0:00:02]} 23. b4 {[%emt 0:00:04]} Qc7 {[%emt 0:00:12]} 24. bxc5 {[%emt 0:00:03]} dxc5 {[%emt 0:00:19]} 25. Ra3 {[%emt 0:00:27]} a5 {[%emt 0:00:06]} 26. Rfa1 {[%emt 0:00:03]} Be8 {[%emt 0:00:02]} 27. Nd2 {[%emt 0:00:02]} a4 {[%emt 0:01:34]} 28. Nb1 {[%emt 0:00:04]} Bc6 {[%emt 0:00:28]} 29. Nc3 {[%emt 0:00:02]} Ra5 {[%emt 0:00:01]} 30. Bd2 {[%emt 0:00:19]} Rfa8 {[%emt 0:00:13]} 31. Qd1 {[%emt 0:00:16]} Qd7 {[%emt 0:00:08]} 32. Qc2 {[%emt 0:00:36]} R5a6 {[%emt 0:00:05]} 33. Be3 {[%emt 0:00:30]} h6 {[%emt 0:00:05]} 34. Kg2 {[%emt 0:00:02]} Kh7 {[%emt 0:00:01]} 35. Rb1 {[%emt 0:00:11]} R6a7 {[%emt 0:00:39]} 36. Nb5 {[%emt 0:00:14]} Ra5 {[%emt 0:00:07]} 37. Nc3 {[%emt 0:00:33]} R5a7 {[%emt 0:00:06]} 38. Rba1 {[%emt 0:00:01]} Qe8 {[%emt 0:00:04]} 39. Ne2 {[%emt 0:00:03]} Rb7 {[%emt 0:00:05]} 40. Bd2 {[%emt 0:00:10]} Rab8 {[%emt 0:00:07]} 41. Bc3 {[%emt 0:00:01]} Bd6 {[%emt 0:00:04]} 42. Ng1 {[%emt 0:00:02]} Qf8 {[%emt 0:00:19]} 43. Nf3 {[%emt 0:00:10]} Qf6 {[%emt 0:00:01]} 44. Qe2 {[%emt 0:00:01]} Rb3 {[%emt 0:00:05]} 45. Nd2 {[%emt 0:00:05]} Rxa3 {[%emt 0:00:04]} 46. Rxa3 {[%emt 0:00:02]} Qf4 {[%emt 0:00:02]} 47. Qe3 {[%emt 0:00:07]} Bd7 {[%emt 0:00:21]} 48. Nf3 {[%emt 0:00:15]} Rb3 {[%emt 0:00:04]} 49. Rxb3 {[%emt 0:00:06]} axb3 {[%emt 0:00:00]} 50. Nd2 {[%emt 0:00:01]} Ba4 {[%emt 0:00:07]} 51. Nf3 {[%emt 0:00:41]} Qxe3 {[%emt 0:00:36]} 52. fxe3 {[%emt 0:00:02]} Bc7 {[%emt 0:00:01]} 53. Kf2 {[%emt 0:00:08]} Ba5 {[%emt 0:00:06]} 54. Bxa5 {[%emt 0:00:13]} b2 {[%emt 0:00:01]} 55. Nd2 {[%emt 0:00:01]} Bc2 {[%emt 0:00:01]} 56. Ke2 {[%emt 0:00:00]} b1=Q {[%emt 0:00:02]} 57. Nxb1 {[%emt 0:00:02]} Bxb1 {[%emt 0:00:01]} 58. Bc3 {[%emt 0:00:00]} Kg6 {[%emt 0:00:03]} 59. Bxe5 {[%emt 0:00:02]} Kf7 {[%emt 0:00:01]} 60. Bd6 {[%emt 0:00:01]} 1-0